[Event "Betsys MČR v online bleskovém šachu 2021"]
[Site "Chess.com"]
[Date "2021.04.17"]
[Round "8"]
[White "pavelchrz"]
[Black "VeceraP1973"]
[Result "0-1"]
[WhiteElo "1703"]
[BlackElo "1921"]
[TimeControl "180+1"]
[EndTime "10:22:13 PDT"]
[Termination "Uživatel VeceraP1973 zvítězil matem"]

1. e4 {[%clk 0:02:55.1]} 1... c5 {[%clk 0:02:52.5]} 2. Nf3 {[%clk 0:02:54.5]}
2... Nc6 {[%clk 0:02:51.9]} 3. d4 {[%clk 0:02:54.6]} 3... cxd4 {[%clk
0:02:51.4]} 4. c3 {[%clk 0:02:55.2]} 4... dxc3 {[%clk 0:02:50.1]} 5. Nxc3 {[%clk
0:02:54.6]} 5... d6 {[%clk 0:02:50.2]} 6. Bc4 {[%clk 0:02:55]} 6... Nf6 {[%clk
0:02:48.8]} 7. e5 {[%clk 0:02:52.4]} 7... dxe5 {[%clk 0:02:43.1]} 8. Qxd8+
{[%clk 0:02:49.9]} 8... Kxd8 {[%clk 0:02:40.2]} 9. Ng5 {[%clk 0:02:48.9]} 9...
Kc7 {[%clk 0:02:15.6]} 10. Nxf7 {[%clk 0:02:48.4]} 10... Rg8 {[%clk 0:02:15]}
11. Nxe5 {[%clk 0:02:49]} 11... Rh8 {[%clk 0:02:12.2]} 12. Bf4 {[%clk 0:02:26]}
12... Nxe5 {[%clk 0:02:05.2]} 13. Bxe5+ {[%clk 0:02:25.8]} 13... Kb6 {[%clk
0:02:04.7]} 14. a4 {[%clk 0:02:16.7]} 14... a5 {[%clk 0:01:58.2]} 15. Nb5 {[%clk
0:02:14.1]} 15... e6 {[%clk 0:01:40.2]} 16. Bc7+ {[%clk 0:01:52]} 16... Kc6
{[%clk 0:01:36.5]} 17. O-O {[%clk 0:01:46.9]} 17... b6 {[%clk 0:01:18.3]} 18.
Be2 {[%clk 0:01:38.4]} 18... Bb7 {[%clk 0:01:02.3]} 19. Rac1+ {[%clk 0:01:29]}
19... Bc5 {[%clk 0:01:01.1]} 20. Bf3+ {[%clk 0:01:25.8]} 20... Nd5 {[%clk
0:01:01.1]} 21. Rfd1 {[%clk 0:01:24.8]} 21... Rac8 {[%clk 0:00:59.1]} 22. Bg3
{[%clk 0:01:21.8]} 22... Rcd8 {[%clk 0:00:57]} 23. Na7+ {[%clk 0:01:14]} 23...
Kd7 {[%clk 0:00:54]} 24. Bh4 {[%clk 0:00:56.8]} 24... Ra8 {[%clk 0:00:53]} 25.
Nb5 {[%clk 0:00:55.7]} 25... Bc6 {[%clk 0:00:52.2]} 26. h3 {[%clk 0:00:45.1]}
26... h6 {[%clk 0:00:47.9]} 27. Bg3 {[%clk 0:00:43.2]} 27... Rhd8 {[%clk
0:00:41.1]} 28. Nd4 {[%clk 0:00:33.7]} 28... Bxa4 {[%clk 0:00:32.9]} 29. b3
{[%clk 0:00:32]} 29... Bxd4 {[%clk 0:00:31.1]} 30. bxa4 {[%clk 0:00:28.6]} 30...
Bc5 {[%clk 0:00:29.6]} 31. Bxd5 {[%clk 0:00:28.5]} 31... exd5 {[%clk 0:00:30.4]}
32. Rxd5+ {[%clk 0:00:28.8]} 32... Ke6 {[%clk 0:00:30.2]} 33. Re5+ {[%clk
0:00:26.9]} 33... Kf6 {[%clk 0:00:30.1]} 34. Rce1 {[%clk 0:00:25.7]} 34... Rd4
{[%clk 0:00:27.5]} 35. Re6+ {[%clk 0:00:25]} 35... Kf7 {[%clk 0:00:27.6]} 36.
Bh4 {[%clk 0:00:21.1]} 36... Rxh4 {[%clk 0:00:26.8]} 37. Rc6 {[%clk 0:00:18.7]}
37... Rxa4 {[%clk 0:00:26.6]} 38. Rc7+ {[%clk 0:00:18.5]} 38... Kg8 {[%clk
0:00:25.9]} 39. Rd1 {[%clk 0:00:18]} 39... Ra2 {[%clk 0:00:25.8]} 40. Rdd7
{[%clk 0:00:17.4]} 40... Bf8 {[%clk 0:00:21.9]} 41. g3 {[%clk 0:00:15.7]} 41...
a4 {[%clk 0:00:21.3]} 42. Kg2 {[%clk 0:00:15]} 42... a3 {[%clk 0:00:21.7]} 43.
Ra7 {[%clk 0:00:11.4]} 43... Rxa7 {[%clk 0:00:20.4]} 44. Rxa7 {[%clk 0:00:11.4]}
44... Rb2 {[%clk 0:00:20.2]} 45. Kf3 {[%clk 0:00:10.1]} 45... b5 {[%clk
0:00:20.4]} 46. Kg4 {[%clk 0:00:09.9]} 46... b4 {[%clk 0:00:20.8]} 47. Kh5
{[%clk 0:00:10.6]} 47... Rxf2 {[%clk 0:00:20.7]} 48. Kg6 {[%clk 0:00:10.7]}
48... Rf6+ {[%clk 0:00:20.8]} 49. Kh5 {[%clk 0:00:10]} 49... b3 {[%clk
0:00:21.2]} 50. g4 {[%clk 0:00:10.3]} 50... b2 {[%clk 0:00:19.7]} 51. Rb7 {[%clk
0:00:07.1]} 51... a2 {[%clk 0:00:19.5]} 52. Rxb2 {[%clk 0:00:05.8]} 52... a1=Q
{[%clk 0:00:19.2]} 53. Rg2 {[%clk 0:00:03.5]} 53... Qf1 {[%clk 0:00:18.6]} 54.
Rg3 {[%clk 0:00:03.1]} 54... Qf2 {[%clk 0:00:18]} 55. Kh4 {[%clk 0:00:03.4]}
55... g5+ {[%clk 0:00:17.3]} 56. Kh5 {[%clk 0:00:03.4]} 56... Qxg3 {[%clk
0:00:17.4]} 57. h4 {[%clk 0:00:01.3]} 57... Qxh4# {[%clk 0:00:17.5]} 0-1

[Event "Betsys MČR v online bleskovém šachu 2021"]
[Site "Chess.com"]
[Date "2021.04.17"]
[Round "8"]
[White "Dan1612"]
[Black "Sunnika"]
[Result "0-1"]
[WhiteElo "1980"]
[BlackElo "2288"]
[TimeControl "180+1"]
[EndTime "10:22:15 PDT"]
[Termination "Uživatel Sunnika zvítězil po vzdání soupeře"]

1. e4 {[%clk 0:03:00.9]} 1... e5 {[%clk 0:03:00.2]} 2. Nf3 {[%clk 0:03:01]} 2...
Nc6 {[%clk 0:03:01.1]} 3. Bb5 {[%clk 0:03:01.4]} 3... Nf6 {[%clk 0:03:00.4]} 4.
O-O {[%clk 0:03:01.8]} 4... Nxe4 {[%clk 0:03:00.3]} 5. d4 {[%clk 0:03:01]} 5...
Nd6 {[%clk 0:03:00.3]} 6. Ba4 {[%clk 0:03:00.6]} 6... exd4 {[%clk 0:02:43.1]} 7.
Nxd4 {[%clk 0:02:47.2]} 7... Be7 {[%clk 0:02:37.4]} 8. Nxc6 {[%clk 0:02:43.2]}
8... dxc6 {[%clk 0:02:36.8]} 9. Nc3 {[%clk 0:02:42.2]} 9... O-O {[%clk
0:02:36.4]} 10. Be3 {[%clk 0:02:39.7]} 10... Bf5 {[%clk 0:02:35]} 11. Bb3 {[%clk
0:02:34.1]} 11... Bf6 {[%clk 0:02:28.3]} 12. Bc5 {[%clk 0:02:29.3]} 12... b6
{[%clk 0:02:27.4]} 13. Bd4 {[%clk 0:02:19.5]} 13... Bxd4 {[%clk 0:02:25.3]} 14.
Qxd4 {[%clk 0:02:20]} 14... c5 {[%clk 0:02:26.2]} 15. Qe5 {[%clk 0:02:17.4]}
15... Re8 {[%clk 0:02:24.8]} 16. Qf4 {[%clk 0:02:06.5]} 16... Bg6 {[%clk
0:02:01.1]} 17. Rfe1 {[%clk 0:02:00.8]} 17... h6 {[%clk 0:01:38.6]} 18. Bd5
{[%clk 0:01:46.2]} 18... Rb8 {[%clk 0:01:35.6]} 19. Bc6 {[%clk 0:01:45.8]} 19...
Rxe1+ {[%clk 0:01:28.8]} 20. Rxe1 {[%clk 0:01:46.3]} 20... Bxc2 {[%clk
0:01:29.3]} 21. Nb5 {[%clk 0:01:45.8]} 21... Bg6 {[%clk 0:01:24.1]} 22. Nxa7
{[%clk 0:01:34.6]} 22... Kh7 {[%clk 0:00:50.7]} 23. Nb5 {[%clk 0:01:22.6]} 23...
Nxb5 {[%clk 0:00:43.6]} 24. Bxb5 {[%clk 0:01:22.6]} 24... Ra8 {[%clk 0:00:37.5]}
25. a4 {[%clk 0:01:18.8]} 25... Qd6 {[%clk 0:00:36.4]} 26. Qf3 {[%clk
0:01:15.3]} 26... Rd8 {[%clk 0:00:34.1]} 27. h3 {[%clk 0:01:11.9]} 27... Qd4
{[%clk 0:00:34]} 28. b3 {[%clk 0:01:05]} 28... Rd6 {[%clk 0:00:33.6]} 29. Bc4
{[%clk 0:01:02.6]} 29... Rf6 {[%clk 0:00:33.2]} 30. Qe3 {[%clk 0:01:01.2]} 30...
Qb2 {[%clk 0:00:28.8]} 31. Re2 {[%clk 0:00:55.8]} 31... Qa1+ {[%clk 0:00:24.6]}
32. Kh2 {[%clk 0:00:56.1]} 32... Qd4 {[%clk 0:00:24.4]} 33. Rd2 {[%clk
0:00:46.8]} 33... Qxe3 {[%clk 0:00:22.4]} 34. fxe3 {[%clk 0:00:46.3]} 34... Rd6
{[%clk 0:00:23.3]} 35. Rd5 {[%clk 0:00:35.1]} 35... Kg8 {[%clk 0:00:19.2]} 36.
Kg3 {[%clk 0:00:32]} 36... Kf8 {[%clk 0:00:15.9]} 37. Kf4 {[%clk 0:00:31.1]}
37... f6 {[%clk 0:00:14.8]} 38. e4 {[%clk 0:00:29.4]} 38... Bf7 {[%clk
0:00:14.3]} 39. Rxd6 {[%clk 0:00:09.2]} 39... cxd6 {[%clk 0:00:15.2]} 40. Bxf7
{[%clk 0:00:09.7]} 40... Kxf7 {[%clk 0:00:15]} 41. g4 {[%clk 0:00:10.3]} 41...
Ke6 {[%clk 0:00:14]} 42. h4 {[%clk 0:00:10.1]} 42... g5+ {[%clk 0:00:07.2]} 43.
hxg5 {[%clk 0:00:10.6]} 43... hxg5+ {[%clk 0:00:04.7]} 44. Kf3 {[%clk
0:00:09.8]} 44... d5 {[%clk 0:00:04.7]} 45. Ke3 {[%clk 0:00:08.4]} 45... d4+
{[%clk 0:00:04]} 46. Kd3 {[%clk 0:00:09]} 46... Ke5 {[%clk 0:00:04]} 47. Kc4
{[%clk 0:00:08.2]} 47... Kxe4 {[%clk 0:00:04.3]} 48. Kb5 {[%clk 0:00:08.7]}
48... d3 {[%clk 0:00:05.2]} 49. Kxb6 {[%clk 0:00:09.4]} 49... d2 {[%clk
0:00:06.1]} 50. a5 {[%clk 0:00:09.9]} 50... d1=Q {[%clk 0:00:07]} 51. a6 {[%clk
0:00:10.8]} 51... Qxb3+ {[%clk 0:00:07.5]} 52. Kc7 {[%clk 0:00:11]} 52... Qa4
{[%clk 0:00:06.9]} 53. Kb7 {[%clk 0:00:10.5]} 53... Qb5+ {[%clk 0:00:06.8]} 54.
Ka7 {[%clk 0:00:10.1]} 54... c4 {[%clk 0:00:06.9]} 55. Ka8 {[%clk 0:00:10.1]}
55... Qxa6+ {[%clk 0:00:07.2]} 56. Kb8 {[%clk 0:00:10.1]} 56... Qd6+ {[%clk
0:00:07.1]} 0-1

[Event "Betsys MČR v online bleskovém šachu 2021"]
[Site "Chess.com"]
[Date "2021.04.17"]
[Round "8"]
[White "Chessillusion213"]
[Black "jhdghaka"]
[Result "1/2-1/2"]
[WhiteElo "2155"]
[BlackElo "1878"]
[TimeControl "180+1"]
[EndTime "10:22:17 PDT"]
[Termination "Remíza opakováním pozice"]

1. d4 {[%clk 0:03:00.9]} 1... d5 {[%clk 0:02:59.8]} 2. c4 {[%clk 0:03:00.7]}
2... e6 {[%clk 0:02:59.2]} 3. Nf3 {[%clk 0:03:01]} 3... Nf6 {[%clk 0:02:59.1]}
4. g3 {[%clk 0:03:01.1]} 4... Be7 {[%clk 0:02:57.3]} 5. Bg2 {[%clk 0:03:01.3]}
5... O-O {[%clk 0:02:57.1]} 6. O-O {[%clk 0:03:01.3]} 6... c6 {[%clk 0:02:57.5]}
7. Qc2 {[%clk 0:03:00.9]} 7... Nbd7 {[%clk 0:02:58.1]} 8. Nbd2 {[%clk
0:03:00.6]} 8... b6 {[%clk 0:02:58.4]} 9. e4 {[%clk 0:02:57.6]} 9... dxe4 {[%clk
0:02:55]} 10. Nxe4 {[%clk 0:02:57.7]} 10... Bb7 {[%clk 0:02:55]} 11. Rd1 {[%clk
0:02:55.6]} 11... Nxe4 {[%clk 0:02:53.8]} 12. Qxe4 {[%clk 0:02:55.2]} 12... Nf6
{[%clk 0:02:54.7]} 13. Qc2 {[%clk 0:02:52.3]} 13... Qc8 {[%clk 0:02:28.4]} 14.
c5 {[%clk 0:02:18.2]} 14... Nd5 {[%clk 0:02:21.4]} 15. Ne5 {[%clk 0:02:09.2]}
15... Bf6 {[%clk 0:02:16.1]} 16. Nc4 {[%clk 0:01:58.6]} 16... Be7 {[%clk
0:01:24.9]} 17. Be3 {[%clk 0:01:48.8]} 17... Rd8 {[%clk 0:01:22.3]} 18. a3
{[%clk 0:01:45]} 18... Ba6 {[%clk 0:01:04.8]} 19. b4 {[%clk 0:01:35.8]} 19...
Bxc4 {[%clk 0:01:01.3]} 20. Qxc4 {[%clk 0:01:34.2]} 20... b5 {[%clk 0:01:01.6]}
21. Qc2 {[%clk 0:01:29.9]} 21... a5 {[%clk 0:01:01.4]} 22. Qb3 {[%clk
0:01:15.5]} 22... Bf6 {[%clk 0:00:48.1]} 23. bxa5 {[%clk 0:00:59.3]} 23... Rxa5
{[%clk 0:00:43.9]} 24. a4 {[%clk 0:00:58.5]} 24... Qa8 {[%clk 0:00:32.1]} 25.
Bxd5 {[%clk 0:00:38.2]} 25... Rxd5 {[%clk 0:00:31]} 26. Bd2 {[%clk 0:00:33.9]}
26... Rxa4 {[%clk 0:00:28.1]} 27. Bc3 {[%clk 0:00:33.2]} 27... Rxa1 {[%clk
0:00:19.5]} 28. Rxa1 {[%clk 0:00:32.8]} 28... Qb7 {[%clk 0:00:19.4]} 29. Qa3
{[%clk 0:00:26.9]} 29... Rd8 {[%clk 0:00:19.8]} 30. Qa5 {[%clk 0:00:26]} 30...
Rb8 {[%clk 0:00:18.8]} 31. Kg2 {[%clk 0:00:20.8]} 31... h6 {[%clk 0:00:19.1]}
32. Qb4 {[%clk 0:00:18.8]} 32... Ra8 {[%clk 0:00:18.4]} 33. h4 {[%clk
0:00:17.3]} 33... Rxa1 {[%clk 0:00:17.9]} 34. Bxa1 {[%clk 0:00:17.5]} 34... Qa8
{[%clk 0:00:17.6]} 35. Bc3 {[%clk 0:00:17.4]} 35... Qa4 {[%clk 0:00:17]} 36.
Qxa4 {[%clk 0:00:17.1]} 36... bxa4 {[%clk 0:00:17.9]} 37. Kf3 {[%clk 0:00:17.1]}
37... Kf8 {[%clk 0:00:18.4]} 38. Ke4 {[%clk 0:00:17.4]} 38... Ke7 {[%clk
0:00:18.6]} 39. Kd3 {[%clk 0:00:17.7]} 39... Kd7 {[%clk 0:00:19]} 40. Kc4 {[%clk
0:00:18.1]} 40... g5 {[%clk 0:00:15.7]} 41. h5 {[%clk 0:00:16]} 41... Bg7 {[%clk
0:00:13.7]} 42. Kb4 {[%clk 0:00:15.5]} 42... f5 {[%clk 0:00:13.5]} 43. Kxa4
{[%clk 0:00:14.9]} 43... f4 {[%clk 0:00:11.5]} 44. g4 {[%clk 0:00:14.1]} 44...
Kc7 {[%clk 0:00:10]} 45. Kb4 {[%clk 0:00:13.9]} 45... Kb7 {[%clk 0:00:09.8]} 46.
Kc4 {[%clk 0:00:14.2]} 46... Ka6 {[%clk 0:00:09.9]} 47. f3 {[%clk 0:00:11.2]}
47... Bf6 {[%clk 0:00:08.1]} 48. Bd2 {[%clk 0:00:06.1]} 48... Bd8 {[%clk
0:00:07.7]} 49. Kd3 {[%clk 0:00:05.3]} 49... Bc7 {[%clk 0:00:07.8]} 50. Ke4
{[%clk 0:00:05.3]} 50... Kb5 {[%clk 0:00:06.8]} 51. Kd3 {[%clk 0:00:03]} 51...
Bb8 {[%clk 0:00:04.6]} 52. Bc3 {[%clk 0:00:03.9]} 52... Bc7 {[%clk 0:00:05]} 53.
Bd2 {[%clk 0:00:04.4]} 53... Bb8 {[%clk 0:00:04.4]} 54. Bc1 {[%clk 0:00:05.3]}
54... Bc7 {[%clk 0:00:05.3]} 55. Bb2 {[%clk 0:00:05]} 55... Bb8 {[%clk
0:00:05.5]} 56. Bc3 {[%clk 0:00:04.5]} 56... Bc7 {[%clk 0:00:06.4]} 57. Bd2
{[%clk 0:00:03.7]} 1/2-1/2

[Event "Betsys MČR v online bleskovém šachu 2021"]
[Site "Chess.com"]
[Date "2021.04.17"]
[Round "8"]
[White "hever99"]
[Black "RousekJan"]
[Result "0-1"]
[WhiteElo "2005"]
[BlackElo "1816"]
[TimeControl "180+1"]
[EndTime "10:22:17 PDT"]
[Termination "Uživatel RousekJan zvítězil na čas"]

1. e4 {[%clk 0:03:00.9]} 1... c5 {[%clk 0:03:00.1]} 2. Nc3 {[%clk 0:03:00.2]}
2... e6 {[%clk 0:02:59.2]} 3. g3 {[%clk 0:02:59.8]} 3... Nc6 {[%clk 0:02:57.5]}
4. Bg2 {[%clk 0:02:59.7]} 4... Nge7 {[%clk 0:02:56.4]} 5. Nge2 {[%clk 0:02:56]}
5... g6 {[%clk 0:02:56.6]} 6. d4 {[%clk 0:02:54.4]} 6... cxd4 {[%clk 0:02:54.7]}
7. Nxd4 {[%clk 0:02:54.5]} 7... Bg7 {[%clk 0:02:52.1]} 8. Be3 {[%clk 0:02:54.1]}
8... O-O {[%clk 0:02:48.4]} 9. Nxc6 {[%clk 0:02:54.1]} 9... Nxc6 {[%clk
0:02:48.2]} 10. O-O {[%clk 0:02:53.5]} 10... b6 {[%clk 0:02:40.6]} 11. Qd2
{[%clk 0:02:49.2]} 11... Qc7 {[%clk 0:02:37.3]} 12. Nb5 {[%clk 0:02:42.2]} 12...
Qb8 {[%clk 0:01:47.4]} 13. Bf4 {[%clk 0:02:26.7]} 13... e5 {[%clk 0:01:47.3]}
14. Bg5 {[%clk 0:02:15.1]} 14... f6 {[%clk 0:01:46.7]} 15. Qd5+ {[%clk
0:02:07.2]} 15... Kh8 {[%clk 0:01:42.2]} 16. Be3 {[%clk 0:02:06.8]} 16... Ne7
{[%clk 0:01:36.1]} 17. Qd3 {[%clk 0:01:35.4]} 17... Ba6 {[%clk 0:01:07.2]} 18.
Qxd7 {[%clk 0:01:18.6]} 18... Rd8 {[%clk 0:01:07.3]} 19. Qxe7 {[%clk 0:01:11.4]}
19... Bxb5 {[%clk 0:01:07.5]} 20. Rfd1 {[%clk 0:01:09.2]} 20... Re8 {[%clk
0:00:57.8]} 21. Qf7 {[%clk 0:00:55.4]} 21... Rf8 {[%clk 0:00:42.1]} 22. Qb3
{[%clk 0:00:54.8]} 22... Bc6 {[%clk 0:00:40.8]} 23. a4 {[%clk 0:00:49.2]} 23...
Qc7 {[%clk 0:00:40.9]} 24. a5 {[%clk 0:00:47.8]} 24... bxa5 {[%clk 0:00:34.7]}
25. Qc3 {[%clk 0:00:45.8]} 25... Rfd8 {[%clk 0:00:33.8]} 26. Rxd8+ {[%clk
0:00:29.2]} 26... Rxd8 {[%clk 0:00:34.7]} 27. h3 {[%clk 0:00:26.9]} 27... a4
{[%clk 0:00:10.8]} 28. Qc4 {[%clk 0:00:20.4]} 28... Rc8 {[%clk 0:00:09.3]} 29.
Qe2 {[%clk 0:00:20]} 29... Bb7 {[%clk 0:00:08.9]} 30. c3 {[%clk 0:00:18.5]}
30... a6 {[%clk 0:00:08.5]} 31. Rxa4 {[%clk 0:00:17.6]} 31... Qc6 {[%clk
0:00:07.9]} 32. Ra1 {[%clk 0:00:15.9]} 32... Qc4 {[%clk 0:00:06.8]} 33. Qxc4
{[%clk 0:00:14.8]} 33... Rxc4 {[%clk 0:00:07.7]} 34. Bf1 {[%clk 0:00:10.5]}
34... Rc6 {[%clk 0:00:06.2]} 35. Bd3 {[%clk 0:00:06.3]} 35... h5 {[%clk
0:00:05.9]} 36. Kf1 {[%clk 0:00:05.3]} 36... Kg8 {[%clk 0:00:05.8]} 37. Ke2
{[%clk 0:00:05.4]} 37... Kf7 {[%clk 0:00:06]} 38. Kd2 {[%clk 0:00:04.3]} 38...
Ke6 {[%clk 0:00:06.4]} 39. Kc2 {[%clk 0:00:04.7]} 39... Kd6 {[%clk 0:00:06.9]}
40. b4 {[%clk 0:00:04.8]} 40... Bf8 {[%clk 0:00:05.2]} 41. c4 {[%clk 0:00:05.2]}
41... Kd7 {[%clk 0:00:05.2]} 42. Kb3 {[%clk 0:00:04.7]} 42... Rc7 {[%clk
0:00:02.6]} 43. b5 {[%clk 0:00:05]} 43... axb5 {[%clk 0:00:02.8]} 44. cxb5
{[%clk 0:00:05.3]} 44... Kc8 {[%clk 0:00:02.8]} 45. b6 {[%clk 0:00:05.4]} 45...
Rc6 {[%clk 0:00:03]} 46. Bb5 {[%clk 0:00:04.7]} 46... Rd6 {[%clk 0:00:02.8]} 47.
Rc1+ {[%clk 0:00:04.2]} 47... Kb8 {[%clk 0:00:03.7]} 48. Rc7 {[%clk 0:00:04.2]}
48... Rd8 {[%clk 0:00:02.9]} 49. Rf7 {[%clk 0:00:03.9]} 49... Bd6 {[%clk
0:00:02.6]} 50. Rxf6 {[%clk 0:00:03.8]} 50... Bxe4 {[%clk 0:00:03.1]} 51. Rxg6
{[%clk 0:00:02.9]} 51... Bxg6 {[%clk 0:00:03.2]} 52. Bg5 {[%clk 0:00:01.2]}
52... Bf7+ {[%clk 0:00:03.4]} 0-1

[Event "Betsys MČR v online bleskovém šachu 2021"]
[Site "Chess.com"]
[Date "2021.04.17"]
[Round "8"]
[White "CrisBenton4"]
[Black "starypomalymuz"]
[Result "0-1"]
[WhiteElo "1449"]
[BlackElo "1762"]
[TimeControl "180+1"]
[EndTime "10:22:17 PDT"]
[Termination "Uživatel starypomalymuz zvítězil po vzdání soupeře"]

1. Nf3 {[%clk 0:03:00.9]} 1... d5 {[%clk 0:02:57.9]} 2. c4 {[%clk 0:02:59.2]}
2... c6 {[%clk 0:02:56.6]} 3. e3 {[%clk 0:02:59.1]} 3... Bg4 {[%clk 0:02:56]} 4.
Nc3 {[%clk 0:02:58.5]} 4... e6 {[%clk 0:02:55.8]} 5. d4 {[%clk 0:02:57.7]} 5...
f5 {[%clk 0:02:54.7]} 6. h3 {[%clk 0:02:57.3]} 6... Bxf3 {[%clk 0:02:54.3]} 7.
Qxf3 {[%clk 0:02:55.9]} 7... Nf6 {[%clk 0:02:54.6]} 8. Bd3 {[%clk 0:02:53.3]}
8... Bd6 {[%clk 0:02:53.9]} 9. c5 {[%clk 0:02:51.5]} 9... Bc7 {[%clk 0:02:53.4]}
10. O-O {[%clk 0:02:47.5]} 10... O-O {[%clk 0:02:53.2]} 11. Bd2 {[%clk
0:02:47.1]} 11... Nbd7 {[%clk 0:02:52.2]} 12. a3 {[%clk 0:02:46]} 12... Ne4
{[%clk 0:02:51.9]} 13. Bxe4 {[%clk 0:02:44.7]} 13... fxe4 {[%clk 0:02:51]} 14.
Qe2 {[%clk 0:02:44.3]} 14... e5 {[%clk 0:02:48.9]} 15. dxe5 {[%clk 0:02:38.7]}
15... Nxe5 {[%clk 0:02:45.3]} 16. b4 {[%clk 0:02:32.4]} 16... Qh4 {[%clk
0:02:16.7]} 17. f4 {[%clk 0:02:23.2]} 17... exf3 {[%clk 0:01:50.6]} 18. gxf3
{[%clk 0:02:09.6]} 18... Qxh3 {[%clk 0:01:45.5]} 19. f4 {[%clk 0:02:06.3]} 19...
Nc4 {[%clk 0:01:35.6]} 20. Rf2 {[%clk 0:01:33.6]} 20... Rae8 {[%clk 0:01:18.6]}
21. Rh2 {[%clk 0:01:26.5]} 21... Qf5 {[%clk 0:01:08.6]} 22. Re1 {[%clk
0:01:15.9]} 22... Rf6 {[%clk 0:00:59.9]} 23. e4 {[%clk 0:01:04.9]} 23... Rg6+
{[%clk 0:00:43]} 24. Kh1 {[%clk 0:01:01.8]} 24... Qg4 {[%clk 0:00:36.6]} 25.
Qxg4 {[%clk 0:00:54.6]} 25... Rxg4 {[%clk 0:00:36.1]} 26. exd5 {[%clk
0:00:47.7]} 26... Rxe1+ {[%clk 0:00:32.6]} 27. Bxe1 {[%clk 0:00:47.9]} 27...
Bxf4 {[%clk 0:00:30.7]} 28. Re2 {[%clk 0:00:41.9]} 28... cxd5 {[%clk 0:00:30.3]}
29. Nxd5 {[%clk 0:00:39.6]} 29... Bg5 {[%clk 0:00:25.1]} 30. Ne7+ {[%clk
0:00:18.1]} 30... Bxe7 {[%clk 0:00:23.5]} 31. Rxe7 {[%clk 0:00:18.4]} 31... Nxa3
{[%clk 0:00:23.2]} 32. Rxb7 {[%clk 0:00:12.7]} 32... Nc2 {[%clk 0:00:23.1]} 33.
Re7 {[%clk 0:00:11.5]} 33... Nxe1 {[%clk 0:00:21.5]} 34. Rxe1 {[%clk 0:00:10.8]}
34... Rxb4 {[%clk 0:00:22.1]} 35. Ra1 {[%clk 0:00:10.8]} 35... Rb7 {[%clk
0:00:21.1]} 36. c6 {[%clk 0:00:10.5]} 36... Rc7 {[%clk 0:00:21]} 37. Ra6 {[%clk
0:00:10.5]} 37... Kf7 {[%clk 0:00:20.8]} 38. Kg2 {[%clk 0:00:10.7]} 38... Ke6
{[%clk 0:00:21.3]} 39. Ra4 {[%clk 0:00:10.8]} 39... Kd6 {[%clk 0:00:21.1]} 40.
Rg4 {[%clk 0:00:10.6]} 40... g6 {[%clk 0:00:20.6]} 41. Rf4 {[%clk 0:00:10.6]}
41... Kxc6 {[%clk 0:00:20.4]} 42. Rf6+ {[%clk 0:00:10.9]} 42... Kb7 {[%clk
0:00:18.5]} 43. Rf2 {[%clk 0:00:10]} 43... a5 {[%clk 0:00:18.1]} 44. Ra2 {[%clk
0:00:07.9]} 44... Ka6 {[%clk 0:00:18]} 45. Ra1 {[%clk 0:00:07.8]} 45... Rc3
{[%clk 0:00:16.8]} 46. Rh1 {[%clk 0:00:07.3]} 46... h5 {[%clk 0:00:15.9]} 47.
Rf1 {[%clk 0:00:07.1]} 47... Rc6 {[%clk 0:00:14.4]} 48. Rb1 {[%clk 0:00:05.8]}
48... a4 {[%clk 0:00:13.8]} 49. Rb4 {[%clk 0:00:05.7]} 49... Ka5 {[%clk
0:00:13.5]} 50. Rb1 {[%clk 0:00:05.9]} 50... a3 {[%clk 0:00:13.7]} 51. Ra1
{[%clk 0:00:06]} 51... Ka4 {[%clk 0:00:13.8]} 52. Kf2 {[%clk 0:00:06.5]} 52...
Rc2+ {[%clk 0:00:13.1]} 53. Kf3 {[%clk 0:00:06.1]} 53... a2 {[%clk 0:00:13.2]}
54. Ke3 {[%clk 0:00:05.6]} 54... Kb3 {[%clk 0:00:13]} 55. Kd3 {[%clk 0:00:05.7]}
55... Rb2 {[%clk 0:00:13.2]} 56. Kd4 {[%clk 0:00:04.9]} 56... Rb1 {[%clk
0:00:13]} 0-1